[Event "Moscow ch-T 2018"]
[Site "Moscow"]
[Date "2018.09.30"]
[Round "7"]
[White "Voronkov, Denis"]
[Black "Dudin, Gleb"]
[Result "0-1"]
[ECO "A46"]
[WhiteElo "2180"]
[BlackElo "2208"]
[Annotator "NA"]
[PlyCount "138"]
[EventDate "2018.09.20"]
[EventType "team-tourn"]
[EventCountry "RUS"]
[SourceTitle "playchess.com"]
[Source "ChessBase"]
[SourceQuality "1"]
[TimeControl "5400+30"]

1. d4 {[%emt 0:00:00]} Nf6 {[%emt 0:02:04]} 2. Nf3 {[%emt 0:00:00]} e6 {[%emt 0:00:07]} 3. Bg5 {[%emt 0:00:00]} b6 {[%emt 0:01:15]} 4. Nbd2 {[%emt 0:02:00]} Bb7 {[%emt 0:00:54]} 5. e3 {[%emt 0:01:51]} Be7 {[%emt 0:04:14]} 6. Bd3 {[%emt 0:03:53]} c5 {[%emt 0:09:31]} 7. c3 {[%emt 0:00:05]} d6 {[%emt 0:03:49]} 8. O-O {[%emt 0:00:26]} Nbd7 {[%emt 0:01:01]} 9. Qe2 {[%emt 0:08:43]} h6 {[%emt 0:15:18]} 10. Bh4 {[%emt 0:00:41]} O-O {[%emt 0:00:58]} 11. h3 {[%emt 0:00:46]} Nh5 {[%emt 0:07:57]} 12. Bxe7 {[%emt 0:07:51]} Qxe7 {[%emt 0:00:01]} 13. Be4 {[%emt 0:02:49]} Bxe4 {[%emt 0:10:33]} 14. Nxe4 {[%emt 0:00:10]} d5 {[%emt 0:02:17]} 15. Ne5 {[%emt 0:05:18]} Nxe5 {[%emt 0:07:20]} 16. dxe5 {[%emt 0:03:55]} dxe4 {[%emt 0:02:31]} 17. Qxh5 {[%emt 0:00:17]} Qg5 {[%emt 0:01:38]} 18. Qxg5 {[%emt 0:02:38]} hxg5 {[%emt 0:00:03]} 19. f4 {[%emt 0:04:09]} exf3 {[%emt 0:01:14]} 20. Rxf3 {[%emt 0:00:55]} Rad8 {[%emt 0:03:30]} 21. Rg3 {[%emt 0:00:34]} g6 {[%emt 0:10:27]} 22. Rxg5 {[%emt 0:01:00]} Kg7 {[%emt 0:00:11]} 23. Rf1 {[%emt 0:05:33]} Rh8 {[%emt 0:05:27]} 24. Rf2 {[%emt 0:02:33]} Rh4 {[%emt 0:01:18]} 25. Re2 {[%emt 0:05:48]} Kh6 {[%emt 0:03:51]} 26. Rg3 {[%emt 0:01:01]} Re4 {[%emt 0:00:41]} 27. Kf2 {[%emt 0:04:25]} Rxe5 {[%emt 0:02:06]} 28. e4 {[%emt 0:00:24]} Kg7 {[%emt 0:01:10]} 29. Rge3 {[%emt 0:04:03]} Rh5 {[%emt 0:01:19]} 30. e5 {[%emt 0:00:52]} Rd1 {[%emt 0:01:38]} 31. g4 {[%emt 0:00:34]} Rh8 {[%emt 0:00:19]} 32. Kg2 {[%emt 0:00:16]} Rhd8 {[%emt 0:00:39]} 33. h4 {[%emt 0:01:34]} Ra1 {[%emt 0:00:17]} 34. a3 {[%emt 0:00:26]} Rdd1 {[%emt 0:00:15]} 35. Kg3 {[%emt 0:01:54]} Rg1+ {[%emt 0:01:03]} 36. Kf4 {[%emt 0:03:01]} Raf1+ {[%emt 0:00:28]} 37. Rf3 {[%emt 0:00:13]} Rd1 {[%emt 0:00:32]} 38. Re4 {[%emt 0:02:21]} Rg2 {[%emt 0:00:30]} 39. b3 {[%emt 0:00:53]} Rh2 {[%emt 0:00:32]} 40. Kg5 {[%emt 0:00:41]} Ra2 {[%emt 0:00:30]} 41. a4 {[%emt 0:02:01]} Rd5 {[%emt 0:00:29]} 42. c4 {[%emt 0:00:18]} Rd7 {[%emt 0:00:27]} 43. Rg3 {[%emt 0:00:36]} Rh2 {[%emt 0:00:34]} 44. Rf3 {[%emt 0:04:37]} Rd8 {[%emt 0:00:29]} 45. Rf6 {[%emt 0:01:05]} Rd4 {[%emt 0:00:29]} 46. Rxd4 {[%emt 0:00:38]} cxd4 {[%emt 0:00:00]} 47. Rf3 {[%emt 0:00:08]} Re2 {[%emt 0:00:43]} 48. Kf4 {[%emt 0:02:02]} f6 {[%emt 0:00:07]} 49. exf6+ {[%emt 0:00:58]} Kxf6 {[%emt 0:00:11]} 50. g5+ {[%emt 0:00:08]} Kg7 {[%emt 0:00:48]} 51. Rd3 {[%emt 0:00:31]} e5+ {[%emt 0:00:11]} 52. Kf3 {[%emt 0:00:03]} Re1 {[%emt 0:00:18]} 53. Kf2 {[%emt 0:00:10]} Re4 54. Kg3 {[%emt 0:00:16]} Kf7 {[%emt 0:01:43]} 55. Rf3+ {[%emt 0:00:39]} Ke7 {[%emt 0:00:17]} 56. b4 {[%emt 0:03:23]} Re1 {[%emt 0:00:36]} 57. Kf2 {[%emt 0:00:16]} Re4 {[%emt 0:00:58]} 58. Kg3 {[%emt 0:08:15]} Re2 {[%emt 0:00:37]} 59. h5 {[%emt 0:02:57]} e4 {[%emt 0:00:33]} 60. Rf1 {[%emt 0:00:39]} Re3+ {[%emt 0:00:27]} 61. Kh4 {[%emt 0:04:00]} gxh5 {[%emt 0:00:15]} 62. g6 {[%emt 0:00:09]} Rf3 {[%emt 0:00:06]} 63. Rg1 {[%emt 0:01:41]} Kf8 {[%emt 0:00:24]} 64. Kxh5 {[%emt 0:00:41]} Kg7 {[%emt 0:00:28]} 65. Rg4 {[%emt 0:00:27]} Rf5+ {[%emt 0:00:48]} 66. Kh4 {[%emt 0:00:13]} Re5 {[%emt 0:00:06]} 67. Rg1 {[%emt 0:00:59]} e3 {[%emt 0:00:26]} 68. Kg3 {[%emt 0:00:21]} d3 {[%emt 0:01:03]} 69. Kf4 {[%emt 0:00:31]} e2 {[%emt 0:00:24]} 0-1

[Event "Moscow ch-T 2018"]
[Site "Moscow"]
[Date "2018.09.30"]
[Round "7"]
[White "Mayorov, Vasili"]
[Black "Chibukhchyan, Erik"]
[Result "1-0"]
[ECO "A16"]
[WhiteElo "2026"]
[BlackElo "2264"]
[Annotator "NA"]
[PlyCount "69"]
[EventDate "2018.09.20"]
[EventType "team-tourn"]
[EventCountry "RUS"]
[SourceTitle "playchess.com"]
[Source "ChessBase"]
[SourceQuality "1"]
[TimeControl "5400+30"]

1. c4 {[%emt 0:00:00]} Nf6 {[%emt 0:07:25]} 2. Nc3 {[%emt 0:00:12]} g6 {[%emt 0:02:35]} 3. g3 {[%emt 0:00:20]} d5 {[%emt 0:00:11]} 4. cxd5 {[%emt 0:00:54]} Nxd5 {[%emt 0:00:03]} 5. Bg2 {[%emt 0:00:10]} Nb6 {[%emt 0:00:01]} 6. d3 {[%emt 0:01:14]} Bg7 {[%emt 0:00:06]} 7. Be3 {[%emt 0:01:00]} O-O {[%emt 0:00:32]} 8. Qc1 {[%emt 0:01:16]} Re8 {[%emt 0:01:35]} 9. Bh6 {[%emt 0:03:58]} Bh8 {[%emt 0:08:30]} 10. Nf3 {[%emt 0:00:36]} Nc6 {[%emt 0:05:04]} 11. h4 {[%emt 0:01:56]} Nd4 {[%emt 0:12:04]} 12. h5 {[%emt 0:02:19]} Nf5 {[%emt 0:01:15]} 13. hxg6 {[%emt 0:02:57]} hxg6 {[%emt 0:00:10]} 14. Bd2 {[%emt 0:03:01]} c6 {[%emt 0:20:56]} 15. Ne4 {[%emt 0:04:48]} Nd7 {[%emt 0:11:41]} 16. Bc3 {[%emt 0:02:18]} e5 {[%emt 0:02:32]} 17. g4 {[%emt 0:05:37]} Nd4 {[%emt 0:00:37]} 18. Nd6 {[%emt 0:05:56]} Nxf3+ {[%emt 0:00:28]} 19. Bxf3 {[%emt 0:00:30]} Bg7 {[%emt 0:02:15]} 20. Nxe8 {[%emt 0:00:37]} Qxe8 {[%emt 0:00:01]} 21. Qg5 {[%emt 0:02:51]} Nf8 {[%emt 0:00:06]} 22. Qh4 {[%emt 0:05:40]} a5 {[%emt 0:00:15]} 23. Bd2 {[%emt 0:02:11]} e4 {[%emt 0:01:43]} 24. Bxe4 {[%emt 0:00:08]} Bxb2 {[%emt 0:00:12]} 25. Rc1 {[%emt 0:00:30]} Bg7 {[%emt 0:00:38]} 26. Bc3 {[%emt 0:00:31]} Bxc3+ {[%emt 0:00:02]} 27. Rxc3 {[%emt 0:00:11]} Qe5 {[%emt 0:00:01]} 28. Rc1 {[%emt 0:08:51]} Be6 {[%emt 0:00:05]} 29. f4 {[%emt 0:01:57]} Qb2 {[%emt 0:00:26]} 30. Kf2 {[%emt 0:00:41]} Bxa2 {[%emt 0:00:34]} 31. f5 {[%emt 0:00:15]} Qd4+ {[%emt 0:08:46]} 32. Kg2 {[%emt 0:00:09]} Bd5 {[%emt 0:01:12]} 33. Bxd5 {[%emt 0:01:30]} Qxd5+ {[%emt 0:00:19]} 34. e4 {[%emt 0:00:07]} Qa2+ {[%emt 0:01:26]} 35. Kf3 {[%emt 0:00:37]} 1-0